[Event "*** SCC Grand Prix: Titled Tuesday Blitz"]
[Site "Chess.com"]
[Date "2020.10.13"]
[Round "5"]
[White "Gloomy_Wanderer"]
[Black "JakubPulpan"]
[Result "1-0"]
[WhiteElo "2762"]
[BlackElo "2673"]
[TimeControl "180+1"]
[EndTime "10:52:16 PDT"]
[Termination "Gloomy_Wanderer won by resignation"]

1. d4 {[%clk 0:03:00.9]} 1... Nf6 {[%clk 0:02:59.3]} 2. Nf3 {[%clk 0:03:00.7]}
2... d5 {[%clk 0:02:56.4]} 3. c4 {[%clk 0:03:00.9]} 3... e6 {[%clk 0:02:56.5]}
4. g3 {[%clk 0:03:01]} 4... Be7 {[%clk 0:02:54.6]} 5. Bg2 {[%clk 0:03:01.2]}
5... O-O {[%clk 0:02:55.5]} 6. O-O {[%clk 0:03:01.9]} 6... dxc4 {[%clk
0:02:54.8]} 7. Ne5 {[%clk 0:03:02]} 7... c5 {[%clk 0:02:23.3]} 8. dxc5 {[%clk
0:02:58.5]} 8... Bxc5 {[%clk 0:02:24.2]} 9. Qxd8 {[%clk 0:02:57.7]} 9... Rxd8
{[%clk 0:02:25.1]} 10. Nc3 {[%clk 0:02:58]} 10... Nbd7 {[%clk 0:02:23.2]} 11.
Nxc4 {[%clk 0:02:57.3]} 11... Nb6 {[%clk 0:02:18.6]} 12. Na5 {[%clk 0:02:50.9]}
12... Nbd5 {[%clk 0:02:18.7]} 13. Nxd5 {[%clk 0:02:47.9]} 13... Nxd5 {[%clk
0:02:18.2]} 14. Rd1 {[%clk 0:02:45.6]} 14... b6 {[%clk 0:02:06.6]} 15. Nc6
{[%clk 0:02:01.7]} 15... Rd6 {[%clk 0:02:03.8]} 16. Ne7+ {[%clk 0:01:57.4]}
16... Kf8 {[%clk 0:01:58.1]} 17. Nxd5 {[%clk 0:01:54.3]} 17... exd5 {[%clk
0:01:54]} 18. Rxd5 {[%clk 0:01:50.7]} 18... Rf6 {[%clk 0:01:33.8]} 1-0

[Event "*** SCC Grand Prix: Titled Tuesday Blitz"]
[Site "Chess.com"]
[Date "2020.10.13"]
[Round "5"]
[White "nochewycandy"]
[Black "peixe64"]
[Result "0-1"]
[WhiteElo "2540"]
[BlackElo "2372"]
[TimeControl "180+1"]
[EndTime "10:52:54 PDT"]
[Termination "peixe64 won by resignation"]

1. e4 {[%clk 0:03:00.9]} 1... e5 {[%clk 0:03:00.1]} 2. Qh5 {[%clk 0:03:00.2]}
2... Nc6 {[%clk 0:02:57.8]} 3. Bc4 {[%clk 0:02:59]} 3... g6 {[%clk 0:02:56.3]}
4. Qf3 {[%clk 0:02:59]} 4... Nf6 {[%clk 0:02:56.1]} 5. Ne2 {[%clk 0:02:58.9]}
5... Bg7 {[%clk 0:02:54.1]} 6. Nbc3 {[%clk 0:02:57.3]} 6... O-O {[%clk
0:02:51.4]} 7. d3 {[%clk 0:02:57.3]} 7... d6 {[%clk 0:02:44.8]} 8. Bg5 {[%clk
0:02:46.2]} 8... h6 {[%clk 0:02:40.8]} 9. Bd2 {[%clk 0:02:46.3]} 9... Na5 {[%clk
0:02:21.2]} 10. h3 {[%clk 0:02:39.6]} 10... Nxc4 {[%clk 0:02:20.9]} 11. dxc4
{[%clk 0:02:40.5]} 11... c6 {[%clk 0:02:19.8]} 12. O-O-O {[%clk 0:02:34.9]}
12... Qc7 {[%clk 0:02:15.3]} 13. g4 {[%clk 0:02:32.3]} 13... Be6 {[%clk
0:02:09.3]} 14. b3 {[%clk 0:02:30.2]} 14... a5 {[%clk 0:02:07.7]} 15. Be3 {[%clk
0:02:29.5]} 15... Nd7 {[%clk 0:02:00.5]} 16. h4 {[%clk 0:02:25.2]} 16... a4
{[%clk 0:01:55.4]} 17. h5 {[%clk 0:02:19.9]} 17... axb3 {[%clk 0:01:50.3]} 18.
axb3 {[%clk 0:02:17.8]} 18... g5 {[%clk 0:01:43.3]} 19. Kb2 {[%clk 0:02:16.1]}
19... Ra6 {[%clk 0:01:18]} 20. Ra1 {[%clk 0:02:14.3]} 20... Rfa8 {[%clk
0:01:16.1]} 21. Ng3 {[%clk 0:02:06.7]} 21... Rxa1 {[%clk 0:01:11.3]} 22. Rxa1
{[%clk 0:02:06.3]} 22... Rxa1 {[%clk 0:01:11.3]} 23. Kxa1 {[%clk 0:02:07.2]}
23... d5 {[%clk 0:01:06.1]} 24. cxd5 {[%clk 0:02:00.8]} 24... cxd5 {[%clk
0:01:05.1]} 25. Nxd5 {[%clk 0:01:58.4]} 25... Bxd5 {[%clk 0:01:04.6]} 26. exd5
{[%clk 0:01:59.3]} 26... e4+ {[%clk 0:01:05]} 0-1

[Event "*** SCC Grand Prix: Titled Tuesday Blitz"]
[Site "Chess.com"]
[Date "2020.10.13"]
[Round "5"]
[White "Flopezin"]
[Black "Lion-Al-Messi"]
[Result "0-1"]
[WhiteElo "2333"]
[BlackElo "2542"]
[TimeControl "180+1"]
[EndTime "10:52:57 PDT"]
[Termination "Lion-Al-Messi won by resignation"]

1. c4 {[%clk 0:03:00.9]} 1... c5 {[%clk 0:02:59]} 2. Nf3 {[%clk 0:03:00.5]} 2...
Nc6 {[%clk 0:02:59]} 3. Nc3 {[%clk 0:02:58.8]} 3... g6 {[%clk 0:02:58.1]} 4. e3
{[%clk 0:02:57.5]} 4... Bg7 {[%clk 0:02:56.2]} 5. d4 {[%clk 0:02:58]} 5... cxd4
{[%clk 0:02:55.9]} 6. exd4 {[%clk 0:02:58.9]} 6... d6 {[%clk 0:02:55.8]} 7. Be2
{[%clk 0:02:58.5]} 7... Nf6 {[%clk 0:02:55.9]} 8. h3 {[%clk 0:02:58.6]} 8... O-O
{[%clk 0:02:56.2]} 9. O-O {[%clk 0:02:58.4]} 9... Bf5 {[%clk 0:02:56.8]} 10. b3
{[%clk 0:02:56.3]} 10... Rc8 {[%clk 0:02:55.8]} 11. Bb2 {[%clk 0:02:54.3]} 11...
Ne4 {[%clk 0:02:53.1]} 12. Nxe4 {[%clk 0:02:46.7]} 12... Bxe4 {[%clk 0:02:54]}
13. Qd2 {[%clk 0:02:30.5]} 13... d5 {[%clk 0:02:27.8]} 14. c5 {[%clk 0:02:25.9]}
14... b6 {[%clk 0:02:14.7]} 15. b4 {[%clk 0:02:25.3]} 15... bxc5 {[%clk
0:02:15.1]} 16. bxc5 {[%clk 0:02:26.2]} 16... Rb8 {[%clk 0:02:12.9]} 17. Bc3
{[%clk 0:02:14.6]} 17... Qc7 {[%clk 0:02:08.5]} 18. Ng5 {[%clk 0:02:10.9]} 18...
Bf5 {[%clk 0:02:05.5]} 19. g4 {[%clk 0:02:11.2]} 19... Bd7 {[%clk 0:02:03.7]}
20. Rab1 {[%clk 0:02:01.6]} 20... Bh6 {[%clk 0:01:48.5]} 21. f4 {[%clk
0:01:58.9]} 21... Bxg5 {[%clk 0:01:48.2]} 22. fxg5 {[%clk 0:01:58.9]} 22... Qg3+
{[%clk 0:01:48.3]} 23. Kh1 {[%clk 0:01:57.4]} 23... Qxh3+ {[%clk 0:01:49.2]} 24.
Kg1 {[%clk 0:01:57.9]} 24... Bxg4 {[%clk 0:01:46.7]} 25. Ba6 {[%clk 0:01:38.7]}
25... Qg3+ {[%clk 0:01:44.5]} 26. Qg2 {[%clk 0:01:37.8]} 26... Qe3+ {[%clk
0:01:42.1]} 27. Kh1 {[%clk 0:01:34.4]} 27... Bh3 {[%clk 0:01:35.2]} 0-1

[Event "*** SCC Grand Prix: Titled Tuesday Blitz"]
[Site "Chess.com"]
[Date "2020.10.13"]
[Round "5"]
[White "tandaleo"]
[Black "bratkoo"]
[Result "1-0"]
[WhiteElo "2349"]
[BlackElo "2521"]
[TimeControl "180+1"]
[EndTime "10:53:14 PDT"]
[Termination "tandaleo won by checkmate"]

1. d4 {[%clk 0:03:00.9]} 1... e6 {[%clk 0:02:51.2]} 2. c4 {[%clk 0:02:58.9]}
2... d5 {[%clk 0:02:52.1]} 3. Nc3 {[%clk 0:02:58.1]} 3... c6 {[%clk 0:02:50.8]}
4. Nf3 {[%clk 0:02:30.3]} 4... dxc4 {[%clk 0:02:49.6]} 5. e3 {[%clk 0:02:29.8]}
5... b5 {[%clk 0:02:49.9]} 6. a4 {[%clk 0:02:27.9]} 6... Bb4 {[%clk 0:02:50.4]}
7. Bd2 {[%clk 0:02:28.4]} 7... Qb6 {[%clk 0:02:46.5]} 8. axb5 {[%clk 0:02:24.7]}
8... cxb5 {[%clk 0:02:46.7]} 9. Ne5 {[%clk 0:02:22.3]} 9... Bb7 {[%clk
0:02:42.1]} 10. Qg4 {[%clk 0:01:55.6]} 10... g6 {[%clk 0:02:37]} 11. Be2 {[%clk
0:01:48.9]} 11... Nf6 {[%clk 0:02:32.3]} 12. Qf4 {[%clk 0:01:47.6]} 12... Nbd7
{[%clk 0:02:22.8]} 13. Bf3 {[%clk 0:01:24.1]} 13... O-O {[%clk 0:02:03.8]} 14.
h4 {[%clk 0:01:18.3]} 14... Bxf3 {[%clk 0:02:02.5]} 15. gxf3 {[%clk 0:01:18.2]}
15... Nxe5 {[%clk 0:01:59]} 16. Qxe5 {[%clk 0:01:13.3]} 16... Bxc3 {[%clk
0:01:49.1]} 17. bxc3 {[%clk 0:01:07.6]} 17... Nd7 {[%clk 0:01:47.2]} 18. Qg3
{[%clk 0:01:05.6]} 18... Rfe8 {[%clk 0:01:41.6]} 19. h5 {[%clk 0:01:05.8]} 19...
e5 {[%clk 0:01:41.7]} 20. hxg6 {[%clk 0:01:02.7]} 20... hxg6 {[%clk 0:01:42.2]}
21. Qh3 {[%clk 0:00:53.7]} 21... Qe6 {[%clk 0:01:34.7]} 22. Qh8# {[%clk
0:00:53.5]} 1-0

[Event "*** SCC Grand Prix: Titled Tuesday Blitz"]
[Site "Chess.com"]
[Date "2020.10.13"]
[Round "5"]
[White "kidagent"]
[Black "SabKaD4ddy"]
[Result "0-1"]
[WhiteElo "2274"]
[BlackElo "2515"]
[TimeControl "180+1"]
[EndTime "10:53:25 PDT"]
[Termination "SabKaD4ddy won by resignation"]

1. e4 {[%clk 0:03:00.9]} 1... c5 {[%clk 0:02:59.3]} 2. Nf3 {[%clk 0:03:00.3]}
2... d6 {[%clk 0:02:59.4]} 3. d4 {[%clk 0:03:00.7]} 3... cxd4 {[%clk 0:03:00.3]}
4. Nxd4 {[%clk 0:03:01.2]} 4... Nf6 {[%clk 0:03:00.8]} 5. Nc3 {[%clk 0:03:01.8]}
5... a6 {[%clk 0:03:00.7]} 6. Bg5 {[%clk 0:03:02]} 6... e6 {[%clk 0:03:00.8]} 7.
f4 {[%clk 0:03:02.2]} 7... Be7 {[%clk 0:03:01.3]} 8. Qf3 {[%clk 0:03:02.2]} 8...
h6 {[%clk 0:03:02]} 9. Bh4 {[%clk 0:03:01.8]} 9... Qc7 {[%clk 0:03:02.4]} 10.
O-O-O {[%clk 0:03:01.6]} 10... Nbd7 {[%clk 0:03:03]} 11. Bd3 {[%clk 0:03:00.5]}
11... g5 {[%clk 0:03:02.5]} 12. fxg5 {[%clk 0:02:58.1]} 12... Ne5 {[%clk
0:03:02.8]} 13. Qf2 {[%clk 0:02:53.4]} 13... Nfg4 {[%clk 0:03:02.7]} 14. Qe2
{[%clk 0:02:53.1]} 14... hxg5 {[%clk 0:03:01.7]} 15. Bg3 {[%clk 0:02:52.3]}
15... b5 {[%clk 0:02:58.6]} 16. h3 {[%clk 0:02:46]} 16... Nf6 {[%clk 0:02:53.8]}
17. Kb1 {[%clk 0:02:43.5]} 17... Bb7 {[%clk 0:02:52.6]} 18. Rhf1 {[%clk
0:02:37.9]} 18... Nh5 {[%clk 0:02:39.1]} 19. Bh2 {[%clk 0:02:32.2]} 19... Nf4
{[%clk 0:02:37.5]} 20. Bxf4 {[%clk 0:02:30.3]} 20... gxf4 {[%clk 0:02:38.4]} 21.
Nf3 {[%clk 0:02:24.6]} 21... O-O-O {[%clk 0:02:34.2]} 22. Nd4 {[%clk 0:02:23.6]}
22... Kb8 {[%clk 0:02:30.1]} 23. Rxf4 {[%clk 0:02:22.6]} 23... Nxd3 {[%clk
0:02:30.2]} 24. cxd3 {[%clk 0:02:22]} 24... e5 {[%clk 0:02:30.7]} 25. Ndxb5
{[%clk 0:02:17.2]} 25... axb5 {[%clk 0:02:30.9]} 26. Rxf7 {[%clk 0:02:17.1]}
26... b4 {[%clk 0:02:15.6]} 27. Nb5 {[%clk 0:02:12.4]} 27... Qd7 {[%clk
0:02:15.1]} 28. d4 {[%clk 0:02:10.5]} 28... Qe6 {[%clk 0:02:06.2]} 29. Rg7
{[%clk 0:01:52.4]} 29... exd4 {[%clk 0:02:00.2]} 30. Nxd4 {[%clk 0:01:50.2]}
30... Qxe4+ {[%clk 0:01:59.8]} 31. Qxe4 {[%clk 0:01:45.9]} 31... Bxe4+ {[%clk
0:02:00.7]} 32. Ka1 {[%clk 0:01:46.8]} 32... Bf6 {[%clk 0:01:59.7]} 33. Rg4
{[%clk 0:01:40.9]} 33... Bxd4 {[%clk 0:01:53.9]} 34. Rxe4 {[%clk 0:01:40.5]}
34... Bc5 {[%clk 0:01:50.7]} 35. Rf1 {[%clk 0:01:27.2]} 35... Rde8 {[%clk
0:01:46.5]} 36. Rxe8+ {[%clk 0:01:25.6]} 36... Rxe8 {[%clk 0:01:47.4]} 37. Kb1
{[%clk 0:01:24]} 37... Re2 {[%clk 0:01:47]} 38. g4 {[%clk 0:01:23.8]} 38... Bd4
{[%clk 0:01:44.5]} 39. b3 {[%clk 0:01:21.6]} 39... Rb2+ {[%clk 0:01:43.5]} 0-1

[Event "*** SCC Grand Prix: Titled Tuesday Blitz"]
[Site "Chess.com"]
[Date "2020.10.13"]
[Round "5"]
[White "Baby_Legs"]
[Black "Ave_Mariia"]
[Result "1-0"]
[WhiteElo "2706"]
[BlackElo "2497"]
[TimeControl "180+1"]
[EndTime "10:53:33 PDT"]
[Termination "Baby_Legs won by resignation"]

1. c4 {[%clk 0:03:00.9]} 1... c5 {[%clk 0:02:54.3]} 2. Nc3 {[%clk 0:02:59.6]}
2... g6 {[%clk 0:02:53.9]} 3. g3 {[%clk 0:02:59.5]} 3... Bg7 {[%clk 0:02:53.5]}
4. Bg2 {[%clk 0:02:58.8]} 4... Nc6 {[%clk 0:02:53.8]} 5. d3 {[%clk 0:02:59.4]}
5... e6 {[%clk 0:02:53.4]} 6. Bxc6 {[%clk 0:02:57.9]} 6... dxc6 {[%clk
0:02:44.4]} 7. f4 {[%clk 0:02:57.6]} 7... Ne7 {[%clk 0:02:41.8]} 8. Nf3 {[%clk
0:02:56.4]} 8... O-O {[%clk 0:02:40.2]} 9. e4 {[%clk 0:02:56.5]} 9... Qc7 {[%clk
0:02:32.1]} 10. g4 {[%clk 0:02:51.8]} 10... f5 {[%clk 0:02:27.7]} 11. gxf5
{[%clk 0:02:48]} 11... exf5 {[%clk 0:02:26.8]} 12. e5 {[%clk 0:02:47.6]} 12...
Rd8 {[%clk 0:02:17.8]} 13. Be3 {[%clk 0:02:44.6]} 13... b6 {[%clk 0:02:15.9]}
14. Qe2 {[%clk 0:02:44.5]} 14... Be6 {[%clk 0:02:10.3]} 15. b3 {[%clk
0:02:39.7]} 15... Rd7 {[%clk 0:01:56.2]} 16. Kf2 {[%clk 0:02:36.5]} 16... h6
{[%clk 0:01:54.5]} 17. h4 {[%clk 0:02:35.2]} 17... Rad8 {[%clk 0:01:53.8]} 18.
Rad1 {[%clk 0:02:34.6]} 18... Rd4 {[%clk 0:01:53.5]} 19. Rhg1 {[%clk 0:02:32.4]}
19... b5 {[%clk 0:01:47.1]} 20. cxb5 {[%clk 0:02:29.7]} 20... cxb5 {[%clk
0:01:46.8]} 21. Nxb5 {[%clk 0:02:28.1]} 21... Qa5 {[%clk 0:01:37.8]} 22. Nd6
{[%clk 0:02:20.5]} 22... R4xd6 {[%clk 0:01:31.5]} 23. exd6 {[%clk 0:02:21.4]}
23... Rxd6 {[%clk 0:01:31.9]} 24. Ne5 {[%clk 0:02:20.9]} 24... Kh7 {[%clk
0:01:23.5]} 25. Rg3 {[%clk 0:01:53.1]} 25... Nd5 {[%clk 0:01:19.7]} 26. Rxg6
{[%clk 0:01:49.8]} 26... Nxe3 {[%clk 0:01:17.3]} 27. Qxe3 {[%clk 0:01:49.7]}
27... Qxa2+ {[%clk 0:01:11.9]} 28. Rd2 {[%clk 0:01:49.2]} 28... Qxb3 {[%clk
0:01:11.7]} 29. Qg3 {[%clk 0:01:45.8]} 29... Bxe5 {[%clk 0:01:06.3]} 30. fxe5
{[%clk 0:01:42.1]} 30... Rd7 {[%clk 0:01:03.7]} 31. h5 {[%clk 0:01:41.3]} 31...
Qd5 {[%clk 0:00:57.7]} 32. Rxh6+ {[%clk 0:01:41.1]} 1-0

[Event "*** SCC Grand Prix: Titled Tuesday Blitz"]
[Site "Chess.com"]
[Date "2020.10.13"]
[Round "5"]
[White "GM_Levan_Pantsulaia"]
[Black "louis198"]
[Result "1-0"]
[WhiteElo "2811"]
[BlackElo "2581"]
[TimeControl "180+1"]
[EndTime "10:53:39 PDT"]
[Termination "GM_Levan_Pantsulaia won by resignation"]

1. Nf3 {[%clk 0:03:00.9]} 1... d5 {[%clk 0:02:59.6]} 2. g3 {[%clk 0:03:01.8]}
2... e6 {[%clk 0:02:59.6]} 3. Bg2 {[%clk 0:03:01.3]} 3... g6 {[%clk 0:03:00.1]}
4. O-O {[%clk 0:03:00.7]} 4... Bg7 {[%clk 0:03:01]} 5. c4 {[%clk 0:02:53.8]}
5... Ne7 {[%clk 0:03:00.7]} 6. d4 {[%clk 0:02:52]} 6... O-O {[%clk 0:03:01.2]}
7. Nc3 {[%clk 0:02:46.7]} 7... Nbc6 {[%clk 0:03:00.1]} 8. cxd5 {[%clk 0:02:42]}
8... exd5 {[%clk 0:03:00.1]} 9. Bf4 {[%clk 0:02:42.7]} 9... a6 {[%clk
0:03:00.2]} 10. Rc1 {[%clk 0:02:35.5]} 10... Nf5 {[%clk 0:02:59.6]} 11. e3
{[%clk 0:02:30.2]} 11... Nce7 {[%clk 0:02:59.8]} 12. Qb3 {[%clk 0:02:25.4]}
12... c6 {[%clk 0:03:00.1]} 13. Na4 {[%clk 0:02:21.2]} 13... Nd6 {[%clk
0:02:48.8]} 14. Nb6 {[%clk 0:02:20.7]} 14... Rb8 {[%clk 0:02:48.7]} 15. Qb4
{[%clk 0:02:11.5]} 15... Nef5 {[%clk 0:02:28.8]} 16. g4 {[%clk 0:02:11.4]} 16...
a5 {[%clk 0:02:27.9]} 17. Qxa5 {[%clk 0:02:11.7]} 17... Nh6 {[%clk 0:01:46.2]}
18. Qb4 {[%clk 0:02:07.3]} 18... Nb5 {[%clk 0:01:39.1]} 19. Bxb8 {[%clk
0:02:01.5]} 19... Qxb6 {[%clk 0:01:39.3]} 20. a4 {[%clk 0:01:58]} 20... Bxg4
{[%clk 0:01:39.7]} 21. Bg3 {[%clk 0:01:56.5]} 21... Nf5 {[%clk 0:01:34.4]} 22.
axb5 {[%clk 0:01:55.6]} 22... h5 {[%clk 0:01:34.8]} 23. Ne5 {[%clk 0:01:48.4]}
23... h4 {[%clk 0:01:32.4]} 24. Nxg4 {[%clk 0:01:46.1]} 24... hxg3 {[%clk
0:01:32.6]} 25. hxg3 {[%clk 0:01:47]} 25... Qd8 {[%clk 0:01:32]} 26. bxc6 {[%clk
0:01:46.1]} 26... bxc6 {[%clk 0:01:32.9]} 27. Rxc6 {[%clk 0:01:45.5]} 27... Qg5
{[%clk 0:01:33.7]} 28. Ne5 {[%clk 0:01:38.8]} 28... Nxe3 {[%clk 0:01:25.6]} 29.
fxe3 {[%clk 0:01:38]} 29... Qxe3+ {[%clk 0:01:26.3]} 30. Rf2 {[%clk 0:01:34.2]}
30... Ra8 {[%clk 0:01:26]} 31. Qd2 {[%clk 0:01:25.1]} 31... Ra1+ {[%clk
0:01:25.5]} 32. Kh2 {[%clk 0:01:24.3]} 1-0

[Event "*** SCC Grand Prix: Titled Tuesday Blitz"]
[Site "Chess.com"]
[Date "2020.10.13"]
[Round "5"]
[White "MisiekZielony"]
[Black "alejanchess73"]
[Result "1-0"]
[WhiteElo "2248"]
[BlackElo "2379"]
[TimeControl "180+1"]
[EndTime "10:53:46 PDT"]
[Termination "MisiekZielony won by resignation"]

1. c4 {[%clk 0:03:00]} 1... e6 {[%clk 0:02:59.3]} 2. Nc3 {[%clk 0:02:59.8]} 2...
b6 {[%clk 0:02:58.3]} 3. e4 {[%clk 0:02:58.1]} 3... c5 {[%clk 0:02:57.8]} 4. g3
{[%clk 0:02:58.4]} 4... Bb7 {[%clk 0:02:57.7]} 5. Bg2 {[%clk 0:02:59]} 5... d6
{[%clk 0:02:58.2]} 6. Nge2 {[%clk 0:02:59.4]} 6... Nd7 {[%clk 0:02:57.9]} 7. O-O
{[%clk 0:02:59.7]} 7... a6 {[%clk 0:02:56.9]} 8. d3 {[%clk 0:02:59.5]} 8... Qc7
{[%clk 0:02:55.8]} 9. f4 {[%clk 0:02:55.8]} 9... Ngf6 {[%clk 0:02:55.9]} 10. h3
{[%clk 0:02:55]} 10... Be7 {[%clk 0:02:55.4]} 11. g4 {[%clk 0:02:54.8]} 11...
O-O {[%clk 0:02:52.9]} 12. g5 {[%clk 0:02:53.8]} 12... Ne8 {[%clk 0:02:49.1]}
13. h4 {[%clk 0:02:54.3]} 13... f5 {[%clk 0:02:44.6]} 14. Ng3 {[%clk 0:02:00.3]}
14... g6 {[%clk 0:02:43.1]} 15. exf5 {[%clk 0:01:59.7]} 15... gxf5 {[%clk
0:02:40.9]} 16. Re1 {[%clk 0:01:48.8]} 16... Bxg2 {[%clk 0:02:39]} 17. Kxg2
{[%clk 0:01:48.7]} 17... Qc6+ {[%clk 0:02:10.5]} 18. Kh2 {[%clk 0:01:45.2]}
18... Nc7 {[%clk 0:02:10.2]} 19. Rg1 {[%clk 0:01:24.8]} 19... e5 {[%clk
0:02:03.8]} 20. Qh5 {[%clk 0:01:17.1]} 20... exf4 {[%clk 0:01:44.6]} 21. Bxf4
{[%clk 0:01:14.9]} 21... Ne5 {[%clk 0:01:43.6]} 22. Bxe5 {[%clk 0:01:01.4]}
22... dxe5 {[%clk 0:01:43.5]} 23. g6 {[%clk 0:01:01.3]} 23... hxg6 {[%clk
0:01:31.3]} 24. Nxf5 {[%clk 0:01:00.9]} 24... Kf7 {[%clk 0:01:25]} 25. Qh7+
{[%clk 0:00:55.6]} 25... Kf6 {[%clk 0:01:25.5]} 26. Qxe7+ {[%clk 0:00:52.6]}
26... Kxf5 {[%clk 0:01:26]} 27. Raf1+ {[%clk 0:00:51.9]} 1-0

[Event "*** SCC Grand Prix: Titled Tuesday Blitz"]
[Site "Chess.com"]
[Date "2020.10.13"]
[Round "5"]
[White "Tenamu"]
[Black "szachuspl"]
[Result "0-1"]
[WhiteElo "2361"]
[BlackElo "2559"]
[TimeControl "180+1"]
[EndTime "10:53:55 PDT"]
[Termination "szachuspl won by resignation"]

1. d4 {[%clk 0:02:57.9]} 1... Nf6 {[%clk 0:02:59.3]} 2. Nc3 {[%clk 0:02:57.2]}
2... d5 {[%clk 0:02:59.1]} 3. Bf4 {[%clk 0:02:55.9]} 3... Bf5 {[%clk 0:02:58.9]}
4. f3 {[%clk 0:02:56.1]} 4... c6 {[%clk 0:02:57.7]} 5. g4 {[%clk 0:02:56.1]}
5... Bg6 {[%clk 0:02:57.5]} 6. h4 {[%clk 0:02:56.1]} 6... h5 {[%clk 0:02:57.4]}
7. g5 {[%clk 0:02:56]} 7... Ng8 {[%clk 0:02:56.5]} 8. e3 {[%clk 0:02:56.1]} 8...
Nd7 {[%clk 0:02:55.4]} 9. Bd3 {[%clk 0:02:56.1]} 9... Bxd3 {[%clk 0:02:53.5]}
10. Qxd3 {[%clk 0:02:57]} 10... g6 {[%clk 0:02:53.8]} 11. e4 {[%clk 0:02:56.8]}
11... e6 {[%clk 0:02:53.8]} 12. O-O-O {[%clk 0:02:56.4]} 12... Ne7 {[%clk
0:02:52.8]} 13. Re1 {[%clk 0:02:54.3]} 13... a6 {[%clk 0:02:48.5]} 14. Nh3
{[%clk 0:02:46.1]} 14... Bg7 {[%clk 0:02:47.3]} 15. exd5 {[%clk 0:02:40.3]}
15... cxd5 {[%clk 0:02:46.9]} 16. Bd6 {[%clk 0:02:39.7]} 16... Nb6 {[%clk
0:02:40.4]} 17. Bc5 {[%clk 0:02:35.8]} 17... O-O {[%clk 0:02:36.3]} 18. Nf4
{[%clk 0:02:35]} 18... Re8 {[%clk 0:02:33.9]} 19. Nxe6 {[%clk 0:02:30.4]} 19...
fxe6 {[%clk 0:02:31.4]} 20. Rxe6 {[%clk 0:02:31.3]} 20... Nd7 {[%clk 0:02:26.4]}
21. Ba3 {[%clk 0:02:27.9]} 21... Nf8 {[%clk 0:02:25]} 22. Re2 {[%clk 0:02:21]}
22... Nf5 {[%clk 0:02:24.5]} 23. Rxe8 {[%clk 0:02:18.9]} 23... Qxe8 {[%clk
0:02:24.5]} 24. Nxd5 {[%clk 0:02:19.8]} 24... Rd8 {[%clk 0:02:21]} 25. c4 {[%clk
0:01:58.4]} 25... Kh7 {[%clk 0:02:15.7]} 26. Bxf8 {[%clk 0:01:55.1]} 26... Qxf8
{[%clk 0:02:11.9]} 27. Re1 {[%clk 0:01:55.2]} 27... Rd7 {[%clk 0:02:05.6]} 28.
Re4 {[%clk 0:01:49.5]} 28... b5 {[%clk 0:01:59.4]} 29. Nf4 {[%clk 0:01:34.6]}
29... bxc4 {[%clk 0:01:56.2]} 30. Qxc4 {[%clk 0:01:35.5]} 30... Qd6 {[%clk
0:01:51.4]} 31. Ne6 {[%clk 0:01:30.5]} 31... Bxd4 {[%clk 0:01:43.3]} 32. Nxd4
{[%clk 0:00:56.2]} 32... Nxd4 {[%clk 0:01:42.6]} 33. Re8 {[%clk 0:00:56.7]}
33... Rc7 {[%clk 0:01:33.2]} 0-1

[Event "*** SCC Grand Prix: Titled Tuesday Blitz"]
[Site "Chess.com"]
[Date "2020.10.13"]
[Round "5"]
[White "AungTZ"]
[Black "TC2304"]
[Result "1-0"]
[WhiteElo "2152"]
[BlackElo "2247"]
[TimeControl "180+1"]
[EndTime "10:53:56 PDT"]
[Termination "AungTZ won by resignation"]

1. e4 {[%clk 0:03:00.9]} 1... c5 {[%clk 0:02:59.8]} 2. Nf3 {[%clk 0:02:59.8]}
2... d6 {[%clk 0:03:00.4]} 3. Bb5+ {[%clk 0:02:56.9]} 3... Nd7 {[%clk 0:03:00]}
4. O-O {[%clk 0:02:55.7]} 4... Nf6 {[%clk 0:03:00.5]} 5. Re1 {[%clk 0:02:53.8]}
5... g6 {[%clk 0:03:00.9]} 6. c3 {[%clk 0:02:51.9]} 6... a6 {[%clk 0:03:01.5]}
7. Bxd7+ {[%clk 0:02:50.9]} 7... Bxd7 {[%clk 0:02:59.7]} 8. h3 {[%clk 0:02:51]}
8... Bg7 {[%clk 0:02:59.6]} 9. d4 {[%clk 0:02:51.5]} 9... cxd4 {[%clk
0:02:51.6]} 10. cxd4 {[%clk 0:02:50]} 10... O-O {[%clk 0:02:51.9]} 11. Nc3
{[%clk 0:02:49.1]} 11... b5 {[%clk 0:02:48.9]} 12. a3 {[%clk 0:02:48.1]} 12...
Rc8 {[%clk 0:02:47.5]} 13. Bf4 {[%clk 0:02:44.2]} 13... a5 {[%clk 0:02:13.5]}
14. Qd2 {[%clk 0:02:35.8]} 14... Bc6 {[%clk 0:02:08.7]} 15. d5 {[%clk
0:02:31.9]} 15... Bd7 {[%clk 0:01:50.2]} 16. Bh6 {[%clk 0:02:28]} 16... Qb6
{[%clk 0:01:44.5]} 17. Bxg7 {[%clk 0:02:25]} 17... Kxg7 {[%clk 0:01:45.4]} 18.
e5 {[%clk 0:01:58.5]} 18... dxe5 {[%clk 0:01:45.1]} 19. Nxe5 {[%clk 0:01:58.1]}
19... Qd6 {[%clk 0:01:33.9]} 20. Qd4 {[%clk 0:01:43.8]} 20... b4 {[%clk
0:01:25.8]} 21. Ne4 {[%clk 0:01:43]} 21... Qc7 {[%clk 0:01:04.9]} 22. d6 {[%clk
0:01:12.3]} 22... exd6 {[%clk 0:00:52.2]} 23. Nxd7 {[%clk 0:01:10.6]} 23... Qxd7
{[%clk 0:00:46.7]} 24. Nxf6 {[%clk 0:01:07.6]} 1-0